[Event "Live Chess"]
[Site "Chess.com"]
[Date "2023.05.20"]
[Round "-"]
[White "friarnator"]
[Black "Tushinskiy"]
[Result "0-1"]
[WhiteElo "1989"]
[BlackElo "2109"]
[TimeControl "300"]
[EndTime "9:33:34 PDT"]
[Termination "Tushinskiy won by resignation"]

1. d4 {[%clk 0:04:56.5]} 1... d5 {[%clk 0:04:56.1]} 2. Nc3 {[%clk 0:04:55.1]}
2... c6 {[%clk 0:04:55.8]} 3. Bf4 {[%clk 0:04:53.8]} 3... Nf6 {[%clk 0:04:55.7]}
4. e3 {[%clk 0:04:52.1]} 4... e6 {[%clk 0:04:48.1]} 5. Nf3 {[%clk 0:04:50.1]}
5... Bd6 {[%clk 0:04:48]} 6. Ne5 {[%clk 0:04:49]} 6... Qe7 {[%clk 0:04:38.1]} 7.
Bd3 {[%clk 0:04:46.3]} 7... Nbd7 {[%clk 0:04:38]} 8. g4 {[%clk 0:04:43.9]} 8...
h6 {[%clk 0:04:27.7]} 9. Rg1 {[%clk 0:04:33.3]} 9... a6 {[%clk 0:04:23.3]} 10.
h4 {[%clk 0:04:31.3]} 10... c5 {[%clk 0:04:19.5]} 11. g5 {[%clk 0:04:29.3]}
11... hxg5 {[%clk 0:04:17.1]} 12. hxg5 {[%clk 0:04:29.1]} 12... Nh5 {[%clk
0:04:15.9]} 13. g6 {[%clk 0:04:27.6]} 13... Bxe5 {[%clk 0:04:01.8]} 14. gxf7+
{[%clk 0:04:23.7]} 14... Kd8 {[%clk 0:03:56.2]} 15. dxe5 {[%clk 0:04:15.2]}
15... Nxf4 {[%clk 0:03:54.1]} 16. exf4 {[%clk 0:04:10.5]} 16... Qxf7 {[%clk
0:03:51.9]} 17. Qg4 {[%clk 0:04:09.4]} 17... Rf8 {[%clk 0:03:42.9]} 18. Ne2
{[%clk 0:03:37.9]} 18... c4 {[%clk 0:03:32.4]} 19. Bg6 {[%clk 0:03:33.6]} 19...
Qe7 {[%clk 0:03:27.6]} 20. Nd4 {[%clk 0:03:28.2]} 20... Nc5 {[%clk 0:03:11.6]}
21. O-O-O {[%clk 0:03:09.6]} 21... Kc7 {[%clk 0:02:51.2]} 22. f5 {[%clk
0:02:47.5]} 22... exf5 {[%clk 0:02:34.3]} 23. Bxf5 {[%clk 0:02:47]} 23... Qxe5
{[%clk 0:02:30.2]} 24. Qxg7+ {[%clk 0:02:39.6]} 24... Qxg7 {[%clk 0:02:27.6]}
25. Rxg7+ {[%clk 0:02:39.5]} 25... Kb6 {[%clk 0:02:25.4]} 26. Bxc8 {[%clk
0:02:27.5]} 26... Raxc8 {[%clk 0:02:22.6]} 27. f3 {[%clk 0:02:17.8]} 27... Rf6
{[%clk 0:02:10.4]} 28. Re1 {[%clk 0:02:13.2]} 28... Rc7 {[%clk 0:02:01.1]} 29.
Rxc7 {[%clk 0:01:55.5]} 29... Kxc7 {[%clk 0:02:01]} 30. Re7+ {[%clk 0:01:54.2]}
30... Kb6 {[%clk 0:01:58.6]} 31. Kd2 {[%clk 0:01:52.3]} 31... Rh6 {[%clk
0:01:56.6]} 32. Nf5 {[%clk 0:01:34]} 32... Rh2+ {[%clk 0:01:45.4]} 33. Re2
{[%clk 0:01:31.7]} 33... Rh3 {[%clk 0:01:40.5]} 34. Rf2 {[%clk 0:01:29.9]} 34...
Ne6 {[%clk 0:01:38.1]} 35. Ne7 {[%clk 0:01:14.6]} 35... Kc5 {[%clk 0:01:35.6]}
36. f4 {[%clk 0:01:13.7]} 36... Rh8 {[%clk 0:01:27.3]} 37. f5 {[%clk 0:01:12.5]}
37... Ng5 {[%clk 0:01:25.3]} 38. Ng6 {[%clk 0:00:58.7]} 38... Ne4+ {[%clk
0:01:19.8]} 39. Ke3 {[%clk 0:00:57]} 39... Re8 {[%clk 0:01:19]} 40. Rh2 {[%clk
0:00:47]} 40... d4+ {[%clk 0:01:12.8]} 41. Kf4 {[%clk 0:00:46.4]} 41... d3
{[%clk 0:01:11.7]} 42. cxd3 {[%clk 0:00:46.3]} 42... cxd3 {[%clk 0:01:10.8]} 43.
Ne5 {[%clk 0:00:45.8]} 43... d2 {[%clk 0:00:54.4]} 44. Rh1 {[%clk 0:00:35.4]}
44... Nf2 {[%clk 0:00:52.2]} 45. Nd7+ {[%clk 0:00:11.3]} 45... Kd6 {[%clk
0:00:47.3]} 0-1

[Event "Live Chess"]
[Site "Chess.com"]
[Date "2023.05.20"]
[Round "-"]
[White "MJMykh"]
[Black "Delacorta"]
[Result "1-0"]
[WhiteElo "1035"]
[BlackElo "1385"]
[TimeControl "300"]
[EndTime "9:33:41 PDT"]
[Termination "MJMykh won by resignation"]

1. e4 {[%clk 0:04:58.9]} 1... e6 {[%clk 0:04:58.8]} 2. Nf3 {[%clk 0:04:57.7]}
2... d5 {[%clk 0:04:57.9]} 3. exd5 {[%clk 0:04:56.7]} 3... exd5 {[%clk
0:04:57.8]} 4. Nc3 {[%clk 0:04:56.4]} 4... Nf6 {[%clk 0:04:56.9]} 5. Bb5+ {[%clk
0:04:55.1]} 5... c6 {[%clk 0:04:55.6]} 6. Bd3 {[%clk 0:04:54.4]} 6... Bd6 {[%clk
0:04:54.8]} 7. O-O {[%clk 0:04:52.9]} 7... O-O {[%clk 0:04:53.8]} 8. h3 {[%clk
0:04:52.2]} 8... Re8 {[%clk 0:04:50]} 9. Be2 {[%clk 0:04:42.1]} 9... Bf5 {[%clk
0:04:41.8]} 10. d3 {[%clk 0:04:39]} 10... Qc7 {[%clk 0:04:39.8]} 11. Bg5 {[%clk
0:04:36.2]} 11... Nbd7 {[%clk 0:04:37.4]} 12. Bxf6 {[%clk 0:04:35.1]} 12... Nxf6
{[%clk 0:04:35.8]} 13. Re1 {[%clk 0:04:31.2]} 13... Bd7 {[%clk 0:04:23.6]} 14.
d4 {[%clk 0:04:28.1]} 14... Ne4 {[%clk 0:04:15.7]} 15. Bd3 {[%clk 0:04:14.4]}
15... Nxc3 {[%clk 0:03:53.3]} 16. Rxe8+ {[%clk 0:04:11.4]} 16... Rxe8 {[%clk
0:03:49.7]} 17. bxc3 {[%clk 0:04:10.2]} 17... c5 {[%clk 0:03:30.3]} 18. dxc5
{[%clk 0:04:07.3]} 18... Bxc5 {[%clk 0:03:23.2]} 19. Ng5 {[%clk 0:04:00.4]}
19... Qf4 {[%clk 0:02:53.9]} 20. Nf3 {[%clk 0:03:41.1]} 20... h6 {[%clk
0:02:39.5]} 21. Qd2 {[%clk 0:03:29.4]} 21... Qxd2 {[%clk 0:02:33.5]} 22. Nxd2
{[%clk 0:03:26.6]} 22... Bc6 {[%clk 0:02:23.2]} 23. Nb3 {[%clk 0:03:22.1]} 23...
Bb6 {[%clk 0:02:21.2]} 24. c4 {[%clk 0:03:08.8]} 24... dxc4 {[%clk 0:02:18.1]}
25. Bxc4 {[%clk 0:03:08]} 25... Re4 {[%clk 0:02:11.2]} 26. Bd3 {[%clk
0:03:04.1]} 26... Re5 {[%clk 0:02:02.3]} 27. a4 {[%clk 0:02:53.7]} 27... Bd5
{[%clk 0:01:49.2]} 28. Nd2 {[%clk 0:02:35.5]} 28... Ba5 {[%clk 0:01:40.2]} 29.
Nc4 {[%clk 0:02:16.1]} 29... Bxc4 {[%clk 0:01:28.7]} 30. Bxc4 {[%clk 0:02:14.3]}
30... Re7 {[%clk 0:01:23.1]} 31. Bb5 {[%clk 0:02:08.8]} 31... Rc7 {[%clk
0:01:20.9]} 32. c4 {[%clk 0:02:05.2]} 32... Re7 {[%clk 0:01:19.3]} 33. c5 {[%clk
0:01:59.9]} 33... Rc7 {[%clk 0:01:15.6]} 34. Rc1 {[%clk 0:01:56]} 34... Bb4
{[%clk 0:01:14.2]} 35. c6 {[%clk 0:01:54.1]} 35... bxc6 {[%clk 0:01:10.4]} 36.
Rxc6 {[%clk 0:01:52.6]} 36... Rxc6 {[%clk 0:01:03.1]} 37. Bxc6 {[%clk 0:01:51]}
37... Kf8 {[%clk 0:01:03]} 38. Bb5 {[%clk 0:01:49.5]} 38... Ke7 {[%clk
0:01:02.9]} 39. Kf1 {[%clk 0:01:47.9]} 39... Kd6 {[%clk 0:01:02.8]} 40. Ke2
{[%clk 0:01:47.3]} 40... f5 {[%clk 0:01:00.5]} 41. Kd3 {[%clk 0:01:46]} 41... g5
{[%clk 0:00:59.6]} 42. g3 {[%clk 0:01:45]} 42... a5 {[%clk 0:00:57.1]} 43. f3
{[%clk 0:01:43.7]} 43... Ke5 {[%clk 0:00:56.2]} 44. Ke3 {[%clk 0:01:41.1]} 44...
Bc5+ {[%clk 0:00:54.5]} 45. Kd3 {[%clk 0:01:38.6]} 45... h5 {[%clk 0:00:51]} 46.
Kc4 {[%clk 0:01:37.1]} 46... Bf2 {[%clk 0:00:49.5]} 47. g4 {[%clk 0:01:34.7]}
47... hxg4 {[%clk 0:00:46.7]} 48. hxg4 {[%clk 0:01:34.1]} 48... fxg4 {[%clk
0:00:42]} 49. fxg4 {[%clk 0:01:33.1]} 49... Kf4 {[%clk 0:00:39.5]} 50. Kd3
{[%clk 0:01:29.5]} 50... Kxg4 {[%clk 0:00:37.3]} 51. Ke2 {[%clk 0:01:28.7]}
51... Bb6 {[%clk 0:00:34.8]} 52. Kf1 {[%clk 0:01:27.1]} 52... Kg3 {[%clk
0:00:33.4]} 53. Bc6 {[%clk 0:01:24.3]} 53... Kh2 {[%clk 0:00:30.2]} 54. Bg2
{[%clk 0:01:21.1]} 54... g4 {[%clk 0:00:27.4]} 55. Be4 {[%clk 0:01:18.2]} 55...
Kg3 {[%clk 0:00:26.1]} 56. Ke2 {[%clk 0:01:13.6]} 56... Kf4 {[%clk 0:00:25]} 57.
Bh1 {[%clk 0:01:11.7]} 57... g3 {[%clk 0:00:24.1]} 58. Kf1 {[%clk 0:01:10]}
58... Ke3 {[%clk 0:00:21.2]} 59. Kg2 {[%clk 0:01:07.2]} 59... Bc7 {[%clk
0:00:20.2]} 60. Kh3 {[%clk 0:01:03.4]} 60... Kd4 {[%clk 0:00:18.8]} 61. Bg2
{[%clk 0:01:01.7]} 61... Kc3 {[%clk 0:00:18.2]} 62. Bd5 {[%clk 0:00:59.1]} 62...
Kb4 {[%clk 0:00:16.8]} 63. Bc6 {[%clk 0:00:57.3]} 63... g2 {[%clk 0:00:15.9]}
64. Kxg2 {[%clk 0:00:56.4]} 64... Bd6 {[%clk 0:00:14.2]} 65. Kf3 {[%clk
0:00:55]} 65... Ka3 {[%clk 0:00:14.1]} 66. Ke4 {[%clk 0:00:53.8]} 66... Kb4
{[%clk 0:00:14]} 67. Kd5 {[%clk 0:00:53]} 67... Ka3 {[%clk 0:00:10.1]} 68. Kxd6
{[%clk 0:00:51.8]} 68... Kb4 {[%clk 0:00:08.9]} 69. Kc7 {[%clk 0:00:51.5]} 69...
Kc5 {[%clk 0:00:08]} 70. Kb7 {[%clk 0:00:50.6]} 70... Kb4 {[%clk 0:00:07.4]} 71.
Bb5 {[%clk 0:00:49.5]} 71... Kc5 {[%clk 0:00:07.3]} 72. Ka6 {[%clk 0:00:48.8]}
72... Kb4 {[%clk 0:00:07.2]} 73. Kb6 {[%clk 0:00:47.5]} 73... Ka3 {[%clk
0:00:05.9]} 74. Kxa5 {[%clk 0:00:46.7]} 74... Kb3 {[%clk 0:00:04.9]} 75. Kb6
{[%clk 0:00:46.2]} 75... Kb4 {[%clk 0:00:04.8]} 76. a5 {[%clk 0:00:45.4]} 76...
Ka3 {[%clk 0:00:04.7]} 77. a6 {[%clk 0:00:44.7]} 77... Kb4 {[%clk 0:00:04.6]}
78. a7 {[%clk 0:00:44.4]} 78... Ka3 {[%clk 0:00:04.5]} 79. a8=Q+ {[%clk
0:00:42.5]} 79... Kb4 {[%clk 0:00:04.4]} 80. Qa5+ {[%clk 0:00:41.2]} 1-0

[Event "Live Chess"]
[Site "Chess.com"]
[Date "2023.05.20"]
[Round "-"]
[White "lucaskk818"]
[Black "BMT6"]
[Result "1-0"]
[WhiteElo "1886"]
[BlackElo "584"]
[TimeControl "300"]
[EndTime "9:33:41 PDT"]
[Termination "lucaskk818 won by checkmate"]

1. d4 {[%clk 0:04:57.8]} 1... d5 {[%clk 0:04:57]} 2. c4 {[%clk 0:04:56.7]} 2...
e6 {[%clk 0:04:52.4]} 3. Nf3 {[%clk 0:04:56.2]} 3... dxc4 {[%clk 0:04:48.6]} 4.
Qa4+ {[%clk 0:04:53.5]} 4... Nc6 {[%clk 0:04:40.5]} 5. Qxc4 {[%clk 0:04:51.8]}
5... Bb4+ {[%clk 0:04:34.5]} 6. Bd2 {[%clk 0:04:48.9]} 6... Bxd2+ {[%clk
0:04:31.8]} 7. Nbxd2 {[%clk 0:04:47.7]} 7... e5 {[%clk 0:04:26.6]} 8. dxe5
{[%clk 0:04:44.7]} 8... Nxe5 {[%clk 0:04:21.7]} 9. Nxe5 {[%clk 0:04:41.3]} 9...
Be6 {[%clk 0:04:13]} 10. Qc2 {[%clk 0:04:28]} 10... f6 {[%clk 0:04:06.3]} 11.
Nef3 {[%clk 0:04:20.4]} 11... Qd5 {[%clk 0:03:45.8]} 12. e3 {[%clk 0:04:17.5]}
12... O-O-O {[%clk 0:03:43.9]} 13. Bc4 {[%clk 0:04:13.9]} 13... Qd7 {[%clk
0:03:31.1]} 14. Bxe6 {[%clk 0:04:10.5]} 14... Qxe6 {[%clk 0:03:30.3]} 15. O-O-O
{[%clk 0:04:07.7]} 15... Qxa2 {[%clk 0:03:27.3]} 16. Nb3 {[%clk 0:04:01.2]}
16... Rxd1+ {[%clk 0:03:22.4]} 17. Rxd1 {[%clk 0:03:59.5]} 17... Ne7 {[%clk
0:03:17.1]} 18. Qd3 {[%clk 0:03:50.7]} 18... b6 {[%clk 0:02:52.2]} 19. Nh4
{[%clk 0:03:19.4]} 19... Nc6 {[%clk 0:02:41.1]} 20. Nd4 {[%clk 0:03:00.8]} 20...
Rd8 {[%clk 0:02:32.1]} 21. Qf5+ {[%clk 0:02:56.4]} 21... Kb7 {[%clk 0:02:27.1]}
22. Qf3 {[%clk 0:02:45.2]} 22... Qa1+ {[%clk 0:02:18.4]} 23. Kd2 {[%clk
0:02:43.8]} 23... Qxb2+ {[%clk 0:02:08]} 24. Ke1 {[%clk 0:02:40.6]} 24... Qc3+
{[%clk 0:02:04.2]} 25. Kf1 {[%clk 0:02:38.6]} 25... Qc4+ {[%clk 0:01:54.2]} 26.
Kg1 {[%clk 0:02:37.2]} 26... Ka6 {[%clk 0:01:40]} 27. Nxc6 {[%clk 0:02:33.5]}
27... Rxd1+ {[%clk 0:01:35.6]} 28. Qxd1 {[%clk 0:02:31.4]} 28... Qxc6 {[%clk
0:01:34.3]} 29. Nf3 {[%clk 0:02:27]} 29... g5 {[%clk 0:01:29.1]} 30. Nd4 {[%clk
0:02:25.9]} 30... Qd6 {[%clk 0:01:27.1]} 31. Qa4+ {[%clk 0:02:23.7]} 31... Kb7
{[%clk 0:01:23.8]} 32. h3 {[%clk 0:02:15.3]} 32... h5 {[%clk 0:01:17.6]} 33. Nb5
{[%clk 0:02:11.2]} 33... Qe5 {[%clk 0:00:56]} 34. Qxa7+ {[%clk 0:02:04.3]} 34...
Kc6 {[%clk 0:00:53.2]} 35. Nd4+ {[%clk 0:02:02.3]} 35... Kd5 {[%clk 0:00:47.7]}
36. Qb7+ {[%clk 0:01:58.8]} 36... Kc5 {[%clk 0:00:45.5]} 37. Qc6+ {[%clk
0:01:56.8]} 37... Kb4 {[%clk 0:00:42.5]} 38. Nc2+ {[%clk 0:01:44.7]} 38... Kb3
{[%clk 0:00:40.7]} 39. Nd4+ {[%clk 0:01:38]} 39... Kb2 {[%clk 0:00:33.9]} 40.
Qa4 {[%clk 0:01:28.8]} 40... g4 {[%clk 0:00:27.5]} 41. Qb3+ {[%clk 0:01:26.5]}
41... Kc1 {[%clk 0:00:24.9]} 42. Qc2# {[%clk 0:01:25.6]} 1-0

[Event "Live Chess"]
[Site "Chess.com"]
[Date "2023.05.20"]
[Round "-"]
[White "lamteama1"]
[Black "YF22Raptor"]
[Result "1-0"]
[WhiteElo "927"]
[BlackElo "999"]
[TimeControl "300"]
[EndTime "9:33:41 PDT"]
[Termination "lamteama1 won by resignation"]

1. e4 {[%clk 0:04:56.1]} 1... c6 {[%clk 0:04:59.6]} 2. d3 {[%clk 0:04:26.5]}
2... d5 {[%clk 0:04:58.5]} 3. Nd2 {[%clk 0:04:19.8]} 3... dxe4 {[%clk
0:04:51.3]} 4. dxe4 {[%clk 0:04:15.3]} 4... e6 {[%clk 0:04:45.1]} 5. Ngf3 {[%clk
0:04:09.7]} 5... Bd6 {[%clk 0:04:43.7]} 6. Be2 {[%clk 0:04:04.4]} 6... Nd7
{[%clk 0:04:41.8]} 7. Nc4 {[%clk 0:03:58.4]} 7... Qc7 {[%clk 0:04:39.3]} 8.
Nxd6+ {[%clk 0:03:53.1]} 8... Qxd6 {[%clk 0:04:37.9]} 9. Qxd6 {[%clk 0:03:47.8]}
9... Ne7 {[%clk 0:04:35.4]} 10. Be3 {[%clk 0:03:42.3]} 10... O-O {[%clk
0:04:29.1]} 11. Qxe7 {[%clk 0:03:36.8]} 1-0

[Event "Live Chess"]
[Site "Chess.com"]
[Date "2023.05.20"]
[Round "-"]
[White "ickabod1100"]
[Black "Inglaterra"]
[Result "0-1"]
[WhiteElo "929"]
[BlackElo "2083"]
[TimeControl "300"]
[EndTime "9:33:46 PDT"]
[Termination "Inglaterra won by checkmate"]

1. e4 {[%clk 0:04:58.9]} 1... d6 {[%clk 0:04:58.4]} 2. d4 {[%clk 0:04:56.3]}
2... Nf6 {[%clk 0:04:57.1]} 3. Nc3 {[%clk 0:04:50.6]} 3... g6 {[%clk 0:04:55.9]}
4. e5 {[%clk 0:04:49.1]} 4... dxe5 {[%clk 0:04:52.6]} 5. dxe5 {[%clk 0:04:47.5]}
5... Qxd1+ {[%clk 0:04:52.5]} 6. Nxd1 {[%clk 0:04:45.8]} 6... Ng4 {[%clk
0:04:41.3]} 7. Nf3 {[%clk 0:04:40.2]} 7... Nc6 {[%clk 0:04:39.6]} 8. Bf4 {[%clk
0:04:36.4]} 8... Bg7 {[%clk 0:04:36.9]} 9. Ne3 {[%clk 0:04:32.2]} 9... Ngxe5
{[%clk 0:04:33]} 10. Nxe5 {[%clk 0:04:30]} 10... Nxe5 {[%clk 0:04:32.3]} 11.
O-O-O {[%clk 0:04:26]} 11... c6 {[%clk 0:04:14.6]} 12. Be2 {[%clk 0:04:11.1]}
12... Be6 {[%clk 0:03:57.1]} 13. a3 {[%clk 0:04:05.1]} 13... O-O {[%clk
0:03:54.9]} 14. Rhe1 {[%clk 0:03:57.9]} 14... Rad8 {[%clk 0:03:49.3]} 15. Rxd8
{[%clk 0:03:54.7]} 15... Rxd8 {[%clk 0:03:49.2]} 16. Bf1 {[%clk 0:03:48.3]}
16... Kf8 {[%clk 0:03:36.3]} 17. Rd1 {[%clk 0:03:40.5]} 17... Rxd1+ {[%clk
0:03:30.2]} 18. Nxd1 {[%clk 0:03:38.3]} 18... Nc4 {[%clk 0:03:20.7]} 19. Nc3
{[%clk 0:03:28.3]} 19... Nxa3 {[%clk 0:03:11.4]} 20. bxa3 {[%clk 0:03:25.2]}
20... Bxc3 {[%clk 0:03:09.4]} 21. Bb8 {[%clk 0:03:17]} 21... a6 {[%clk
0:03:00.7]} 22. Bf4 {[%clk 0:03:06.9]} 22... Bd5 {[%clk 0:02:54.2]} 23. f3
{[%clk 0:03:03.8]} 23... e5 {[%clk 0:02:52.1]} 24. Bh6+ {[%clk 0:03:00.4]} 24...
Ke7 {[%clk 0:02:50.8]} 25. Bd3 {[%clk 0:02:52.9]} 25... f5 {[%clk 0:02:48.8]}
26. Bg5+ {[%clk 0:02:49.4]} 26... Kd6 {[%clk 0:02:46.8]} 27. f4 {[%clk
0:02:37.1]} 27... e4 {[%clk 0:02:44]} 28. Be2 {[%clk 0:02:33.9]} 28... b5 {[%clk
0:02:41.8]} 29. h3 {[%clk 0:02:30.3]} 29... Kc5 {[%clk 0:02:33.9]} 30. Kd1
{[%clk 0:02:08.7]} 30... Bc4 {[%clk 0:02:12.6]} 31. Be7+ {[%clk 0:01:56.6]}
31... Kd5 {[%clk 0:02:08.7]} 32. Bxc4+ {[%clk 0:01:49]} 32... Kxc4 {[%clk
0:02:08.6]} 33. g4 {[%clk 0:01:42.8]} 33... c5 {[%clk 0:02:00.4]} 34. gxf5
{[%clk 0:01:39.4]} 34... gxf5 {[%clk 0:02:00.3]} 35. h4 {[%clk 0:01:35.1]} 35...
a5 {[%clk 0:01:59.2]} 36. h5 {[%clk 0:01:28.5]} 36... b4 {[%clk 0:01:58.1]} 37.
a4 {[%clk 0:01:22.6]} 37... Kd4 {[%clk 0:01:49.2]} 38. Ke2 {[%clk 0:01:16.6]}
38... c4 {[%clk 0:01:44]} 39. Bd8 {[%clk 0:00:57.6]} 39... e3 {[%clk 0:01:31.1]}
40. Bxa5 {[%clk 0:00:53.7]} 40... b3 {[%clk 0:01:26.1]} 41. Bxc3+ {[%clk
0:00:44.5]} 41... Kxc3 {[%clk 0:01:26]} 42. cxb3 {[%clk 0:00:43.7]} 42... cxb3
{[%clk 0:01:23.7]} 43. a5 {[%clk 0:00:41.8]} 43... b2 {[%clk 0:01:23]} 44. a6
{[%clk 0:00:41.3]} 44... b1=Q {[%clk 0:01:22.3]} 45. Kxe3 {[%clk 0:00:40.2]}
45... Qe1+ {[%clk 0:01:17]} 46. Kf3 {[%clk 0:00:38.2]} 46... Kd3 {[%clk
0:01:15.3]} 47. a7 {[%clk 0:00:34.5]} 47... Qe4+ {[%clk 0:01:13.6]} 48. Kg3
{[%clk 0:00:31.4]} 48... Ke2 {[%clk 0:01:11.8]} 49. Kh4 {[%clk 0:00:25.8]} 49...
Qxf4+ {[%clk 0:01:10.2]} 50. Kh3 {[%clk 0:00:24.1]} 50... Kf2 {[%clk 0:01:08.7]}
51. a8=Q {[%clk 0:00:18.1]} 51... Qg3# {[%clk 0:01:07.8]} 0-1

[Event "Live Chess"]
[Site "Chess.com"]
[Date "2023.05.20"]
[Round "-"]
[White "Supertromp"]
[Black "Fayn02"]
[Result "1-0"]
[WhiteElo "2163"]
[BlackElo "1019"]
[TimeControl "300"]
[EndTime "9:33:46 PDT"]
[Termination "Supertromp won by resignation"]

1. d4 {[%clk 0:04:58.2]} 1... d5 {[%clk 0:04:52.7]} 2. c4 {[%clk 0:04:55.7]}
2... c6 {[%clk 0:04:52]} 3. Nc3 {[%clk 0:04:54]} 3... Bf5 {[%clk 0:04:50.1]} 4.
cxd5 {[%clk 0:04:45]} 4... cxd5 {[%clk 0:04:48.1]} 5. Qb3 {[%clk 0:04:44.6]}
5... e6 {[%clk 0:04:45.6]} 6. Qxb7 {[%clk 0:04:39.6]} 6... Nd7 {[%clk
0:04:40.6]} 7. Bf4 {[%clk 0:04:25.5]} 7... Ngf6 {[%clk 0:04:33.1]} 8. Nb5 {[%clk
0:04:17.7]} 8... Bb4+ {[%clk 0:04:27.9]} 9. Kd1 {[%clk 0:04:16.6]} 9... O-O
{[%clk 0:04:23.3]} 10. a3 {[%clk 0:03:50.7]} 10... Ba5 {[%clk 0:04:12.6]} 11.
Nf3 {[%clk 0:03:20.9]} 11... Qb6 {[%clk 0:03:50.7]} 12. Qxb6 {[%clk 0:03:11.9]}
12... Bxb6 {[%clk 0:03:49.4]} 13. e3 {[%clk 0:03:03.8]} 13... Rac8 {[%clk
0:03:42.3]} 14. Nd6 {[%clk 0:02:47.4]} 14... Ne4 {[%clk 0:03:30.5]} 15. Nxc8
{[%clk 0:02:33.9]} 15... Rxc8 {[%clk 0:03:24.8]} 16. Bg3 {[%clk 0:02:29.7]}
16... Bc7 {[%clk 0:03:20.6]} 17. Rc1 {[%clk 0:02:24.7]} 17... Nb6 {[%clk
0:03:06.7]} 18. Ke1 {[%clk 0:01:47.1]} 18... Nxg3 {[%clk 0:03:00.5]} 19. hxg3
{[%clk 0:01:44.5]} 19... Bd8 {[%clk 0:02:39.1]} 20. Rxc8 {[%clk 0:01:42.8]}
20... Nxc8 {[%clk 0:02:38.1]} 21. Kd2 {[%clk 0:01:41]} 21... Ba5+ {[%clk
0:02:36]} 22. b4 {[%clk 0:01:39.9]} 22... Bb6 {[%clk 0:02:34.5]} 23. Bd3 {[%clk
0:01:39.8]} 23... Bxd3 {[%clk 0:02:33.3]} 24. Kxd3 {[%clk 0:01:39.7]} 24... Nd6
{[%clk 0:02:32.6]} 25. Rc1 {[%clk 0:01:38.8]} 25... h6 {[%clk 0:02:29.9]} 26.
Ne5 {[%clk 0:01:35.1]} 26... f6 {[%clk 0:02:24.9]} 27. Nd7 {[%clk 0:01:32.4]}
27... Nb5 {[%clk 0:02:14.2]} 28. Nxb6 {[%clk 0:01:29.8]} 28... axb6 {[%clk
0:02:13.9]} 29. a4 {[%clk 0:01:28.6]} 29... Nd6 {[%clk 0:02:08.3]} 30. a5 {[%clk
0:01:26.6]} 30... bxa5 {[%clk 0:02:05.1]} 31. bxa5 {[%clk 0:01:26.5]} 31... Kf7
{[%clk 0:02:03]} 32. a6 {[%clk 0:01:25.2]} 32... Nb5 {[%clk 0:01:59.2]} 33. Rc5
{[%clk 0:01:23.3]} 33... Na7 {[%clk 0:01:57.7]} 34. Rc7+ {[%clk 0:01:21.9]} 1-0

[Event "Live Chess"]
[Site "Chess.com"]
[Date "2023.05.20"]
[Round "-"]
[White "SimpleHarmonic1"]
[Black "Andysav3"]
[Result "1-0"]
[WhiteElo "2075"]
[BlackElo "1688"]
[TimeControl "300"]
[EndTime "9:33:49 PDT"]
[Termination "SimpleHarmonic1 won by resignation"]

1. d4 {[%clk 0:04:57.4]} 1... Nf6 {[%clk 0:04:58.3]} 2. c4 {[%clk 0:04:55.5]}
2... e5 {[%clk 0:04:57.1]} 3. dxe5 {[%clk 0:04:53.7]} 3... Ng4 {[%clk 0:04:56]}
4. Nf3 {[%clk 0:04:52.5]} 4... Bc5 {[%clk 0:04:53.9]} 5. e3 {[%clk 0:04:51.5]}
5... Nc6 {[%clk 0:04:52.2]} 6. Nc3 {[%clk 0:04:47.6]} 6... O-O {[%clk
0:04:50.6]} 7. Be2 {[%clk 0:04:42.8]} 7... Ngxe5 {[%clk 0:04:46]} 8. O-O {[%clk
0:04:39.2]} 8... d6 {[%clk 0:04:43.7]} 9. a3 {[%clk 0:04:36.7]} 9... a5 {[%clk
0:04:40.6]} 10. b3 {[%clk 0:04:35.1]} 10... Bf5 {[%clk 0:04:34.6]} 11. Bb2
{[%clk 0:04:32.9]} 11... Re8 {[%clk 0:04:26.2]} 12. Nd4 {[%clk 0:04:20.5]} 12...
Bd7 {[%clk 0:03:56.3]} 13. Nd5 {[%clk 0:03:59]} 13... Ne7 {[%clk 0:03:33]} 14.
Nf4 {[%clk 0:03:40.2]} 14... N7g6 {[%clk 0:03:22]} 15. Nd3 {[%clk 0:03:36.2]}
15... Nxd3 {[%clk 0:03:08.4]} 16. Bxd3 {[%clk 0:03:36.1]} 16... Ne5 {[%clk
0:03:04.4]} 17. Bc2 {[%clk 0:03:32.3]} 17... Qh4 {[%clk 0:02:46.1]} 18. Nf3
{[%clk 0:03:27.8]} 18... Nxf3+ {[%clk 0:02:33]} 19. Qxf3 {[%clk 0:03:27.7]}
19... Bc6 {[%clk 0:02:29.1]} 20. Qg3 {[%clk 0:03:20.4]} 20... Qxg3 {[%clk
0:02:22.2]} 21. hxg3 {[%clk 0:03:19.7]} 21... f6 {[%clk 0:02:17.4]} 22. Bc3
{[%clk 0:03:08.7]} 22... Be4 {[%clk 0:02:06]} 23. Bd1 {[%clk 0:02:48.8]} 23...
Bb6 {[%clk 0:01:54.4]} 24. Be2 {[%clk 0:02:22.3]} 24... Kf7 {[%clk 0:01:52.2]}
25. b4 {[%clk 0:02:18.3]} 25... axb4 {[%clk 0:01:47.3]} 26. axb4 {[%clk
0:02:18.2]} 26... g6 {[%clk 0:01:42.8]} 27. Rfd1 {[%clk 0:02:05.1]} 27... h5
{[%clk 0:01:33.3]} 28. Kf1 {[%clk 0:01:55.7]} 28... Bf5 {[%clk 0:01:29.4]} 29.
Bf3 {[%clk 0:01:51.3]} 29... Rxa1 {[%clk 0:01:24.5]} 30. Rxa1 {[%clk 0:01:49.2]}
30... Bd3+ {[%clk 0:01:18.1]} 31. Be2 {[%clk 0:01:45.8]} 31... Bxe2+ {[%clk
0:01:14.9]} 32. Kxe2 {[%clk 0:01:45.7]} 32... f5 {[%clk 0:01:11.5]} 33. Rd1
{[%clk 0:01:43.6]} 33... Re7 {[%clk 0:01:07]} 34. Kf3 {[%clk 0:01:39]} 34... g5
{[%clk 0:01:03.4]} 35. Rd5 {[%clk 0:01:33.5]} 35... Kg6 {[%clk 0:00:55.1]} 36.
c5 {[%clk 0:01:27.4]} 36... dxc5 {[%clk 0:00:51.2]} 37. bxc5 {[%clk 0:01:27.3]}
37... Ba7 {[%clk 0:00:49.4]} 38. Bd4 {[%clk 0:01:14.9]} 38... c6 {[%clk
0:00:45.2]} 39. Rd8 {[%clk 0:01:11.4]} 39... g4+ {[%clk 0:00:20.9]} 40. Ke2
{[%clk 0:01:10.2]} 40... f4 {[%clk 0:00:09.3]} 41. gxf4 {[%clk 0:01:08.4]} 1-0